[Event "Magistral Ajedrez 2019"]
[Site "Zaragoza"]
[Date "2019.07.16"]
[Round "3.4"]
[White "Villuendas Valero, Adrian"]
[Black "Shome Shiv"]
[Result "1/2-1/2"]
[ECO "D04"]
[WhiteElo "2250"]
[BlackElo "2298"]
[Annotator "ChessBase"]
[PlyCount "63"]
[EventDate "2019.07.15"]
[EventType "swiss"]
[EventCountry "ESP"]
[SourceTitle "playchess.com"]
[Source "ChessBase"]
[SourceQuality "1"]
[TimeControl "5400+30"]

1. d4 {[%emt 0:00:00]} d5 {[%emt 0:00:00]} 2. Nf3 {[%emt 0:00:15]} Nf6 {[%emt 0:00:00]} 3. e3 {[%emt 0:00:17]} c5 {[%emt 0:00:33]} 4. Bd3 {[%emt 0:00:10]} Nc6 {[%emt 0:00:29]} 5. O-O {[%emt 0:00:21]} Bg4 {[%emt 0:00:30]} 6. Be2 {[%emt 0:05:54]} e6 {[%emt 0:02:27]} 7. h3 {[%emt 0:00:21]} Bh5 {[%emt 0:01:51]} 8. b3 {[%emt 0:00:14]} Be7 {[%emt 0:01:36]} 9. Bb2 {[%emt 0:00:38]} O-O {[%emt 0:01:21]} 10. Nbd2 {[%emt 0:00:22]} Qc7 {[%emt 0:05:48]} 11. c4 {[%emt 0:03:17]} dxc4 {[%emt 0:02:47]} 12. Nxc4 {[%emt 0:05:13]} Rad8 {[%emt 0:07:10]} 13. Nfe5 {[%emt 0:08:03]} Nxe5 {[%emt 0:17:24]} 14. Nxe5 {[%emt 0:00:39]} Bxe2 {[%emt 0:00:26]} 15. Qxe2 {[%emt 0:00:14]} Nd5 {[%emt 0:04:03]} 16. dxc5 {[%emt 0:13:07]} Bf6 {[%emt 0:05:25]} 17. Nf3 {[%emt 0:06:08]} Bxb2 {[%emt 0:02:58]} 18. Qxb2 {[%emt 0:00:09]} Qxc5 {[%emt 0:00:05]} 19. Rfc1 {[%emt 0:05:06]} Qe7 {[%emt 0:02:17]} 20. Rc4 {[%emt 0:04:14]} Rc8 {[%emt 0:08:57]} 21. Rac1 {[%emt 0:06:21]} Nb6 {[%emt 0:04:57]} 22. Rxc8 {[%emt 0:07:03]} Rxc8 {[%emt 0:00:08]} 23. Rxc8+ {[%emt 0:00:29]} Nxc8 {[%emt 0:00:06]} 24. Qc3 {[%emt 0:02:50]} Qd8 {[%emt 0:07:51]} 25. Nd4 {[%emt 0:06:06]} Ne7 {[%emt 0:01:57]} 26. Qc5 {[%emt 0:02:45]} a6 {[%emt 0:01:18]} 27. e4 {[%emt 0:09:25]} h6 {[%emt 0:05:25]} 28. g3 {[%emt 0:09:59]} Qd7 {[%emt 0:03:13]} 29. Kg2 {[%emt 0:00:48]} Kf8 {[%emt 0:03:26]} 30. Nf3 {[%emt 0:01:36]} Qc6 {[%emt 0:01:25]} 31. Qd4 {[%emt 0:00:25]} f6 {[%emt 0:01:05]} 32. Qb4 {[%emt 0:01:38]} 1/2-1/2

[Event "Magistral Ajedrez 2019"]
[Site "Zaragoza"]
[Date "2019.07.16"]
[Round "3.5"]
[White "Randazzo, Adrian"]
[Black "Chueca Forcen, Alberto"]
[Result "1-0"]
[ECO "A06"]
[WhiteElo "2227"]
[BlackElo "2283"]
[Annotator "NA"]
[PlyCount "59"]
[EventDate "2019.07.15"]
[EventType "swiss"]
[EventCountry "ESP"]
[SourceTitle "playchess.com"]
[Source "ChessBase"]
[SourceQuality "1"]
[TimeControl "5400+30"]

1. Nf3 {[%emt 0:00:00]} d5 {[%emt 0:00:00]} 2. e3 {[%emt 0:00:00]} c5 {[%emt 0:00:15]} 3. c4 {[%emt 0:00:05]} d4 {[%emt 0:00:07]} 4. b4 {[%emt 0:00:07]} dxe3 {[%emt 0:02:13]} 5. fxe3 {[%emt 0:00:07]} cxb4 {[%emt 0:00:06]} 6. d4 {[%emt 0:00:20]} Nd7 {[%emt 0:09:15]} 7. Qa4 {[%emt 0:06:16]} e5 {[%emt 0:07:24]} 8. Nxe5 {[%emt 0:03:04]} Bd6 {[%emt 0:04:47]} 9. Nf3 {[%emt 0:01:56]} Ngf6 {[%emt 0:00:06]} 10. c5 {[%emt 0:04:40]} Bc7 {[%emt 0:00:59]} 11. Bc4 {[%emt 0:02:18]} O-O {[%emt 0:01:42]} 12. O-O {[%emt 0:00:12]} a5 {[%emt 0:00:30]} 13. a3 {[%emt 0:00:50]} bxa3 {[%emt 0:03:28]} 14. Nxa3 {[%emt 0:00:30]} Ne4 {[%emt 0:01:19]} 15. Nb5 {[%emt 0:01:21]} Bb8 {[%emt 0:00:31]} 16. Ba3 {[%emt 0:09:16]} Ndf6 {[%emt 0:02:51]} 17. Qc2 {[%emt 0:03:56]} Re8 {[%emt 0:06:24]} 18. d5 {[%emt 0:12:55]} Bg4 {[%emt 0:06:19]} 19. d6 {[%emt 0:01:59]} Bh5 {[%emt 0:01:54]} 20. Rad1 {[%emt 0:10:02]} Nd7 {[%emt 0:04:54]} 21. Bd5 {[%emt 0:03:38]} Bg6 {[%emt 0:00:12]} 22. Qc4 {[%emt 0:01:35]} Ba7 {[%emt 0:08:54]} 23. Bxb7 {[%emt 0:02:38]} Rb8 {[%emt 0:04:48]} 24. Nxa7 {[%emt 0:01:35]} Rxb7 {[%emt 0:00:20]} 25. Nc6 {[%emt 0:00:32]} Qf6 {[%emt 0:04:15]} 26. Ne7+ {[%emt 0:01:11]} Kh8 {[%emt 0:00:29]} 27. c6 {[%emt 0:01:45]} Nb6 {[%emt 0:01:28]} 28. d7 {[%emt 0:02:50]} Nxd7 {[%emt 0:07:54]} 29. cxb7 {[%emt 0:01:26]} Qb6 {[%emt 0:01:30]} 30. Qd4 {[%emt 0:03:15]} 1-0

[Event "Magistral Ajedrez 2019"]
[Site "Zaragoza"]
[Date "2019.07.17"]
[Round "4.1"]
[White "Romero Pallares, Daniel"]
[Black "Chueca Forcen, Alberto"]
[Result "0-1"]
[ECO "C55"]
[WhiteElo "2230"]
[BlackElo "2283"]
[Annotator "NA"]
[PlyCount "126"]
[EventDate "2019.07.15"]
[EventType "swiss"]
[EventCountry "ESP"]
[SourceTitle "playchess.com"]
[Source "ChessBase"]
[SourceQuality "1"]
[TimeControl "5400+30"]

1. e4 {[%emt 0:00:00]} e5 {[%emt 0:00:00]} 2. Nf3 {[%emt 0:00:00]} Nc6 {[%emt 0:00:00]} 3. d4 {[%emt 0:00:00]} exd4 {[%emt 0:00:00]} 4. Bc4 {[%emt 0:00:04]} Nf6 {[%emt 0:00:00]} 5. e5 {[%emt 0:00:04]} d5 {[%emt 0:00:02]} 6. Bb5 {[%emt 0:00:06]} Ne4 {[%emt 0:00:03]} 7. Nxd4 {[%emt 0:00:14]} Bd7 {[%emt 0:00:02]} 8. Bxc6 {[%emt 0:00:10]} bxc6 {[%emt 0:00:05]} 9. O-O {[%emt 0:00:12]} Bc5 {[%emt 0:00:11]} 10. f3 {[%emt 0:00:11]} Ng5 {[%emt 0:00:02]} 11. f4 {[%emt 0:00:04]} Ne4 {[%emt 0:00:05]} 12. Be3 {[%emt 0:00:08]} Bb6 {[%emt 0:01:56]} 13. Nc3 {[%emt 0:00:38]} Nxc3 {[%emt 0:01:07]} 14. bxc3 {[%emt 0:00:03]} Qe7 {[%emt 0:02:05]} 15. Qd2 {[%emt 0:04:02]} O-O {[%emt 0:01:52]} 16. Rae1 {[%emt 0:07:51]} c5 {[%emt 0:02:13]} 17. Nb3 {[%emt 0:02:27]} c4 {[%emt 0:02:25]} 18. Nd4 {[%emt 0:00:15]} c5 {[%emt 0:09:47]} 19. Ne2 {[%emt 0:02:01]} Bc6 {[%emt 0:02:52]} 20. Ng3 {[%emt 0:01:08]} f5 {[%emt 0:08:51]} 21. Qf2 {[%emt 0:15:53]} Rad8 {[%emt 0:02:53]} 22. Rd1 {[%emt 0:01:21]} g6 {[%emt 0:08:10]} 23. Rd2 {[%emt 0:05:00]} a5 {[%emt 0:08:50]} 24. h3 {[%emt 0:08:21]} Ba7 {[%emt 0:03:36]} 25. Ne2 {[%emt 0:12:21]} Rb8 {[%emt 0:04:44]} 26. g4 {[%emt 0:09:01]} Rb2 {[%emt 0:01:23]} 27. gxf5 {[%emt 0:04:00]} Rxf5 {[%emt 0:01:48]} 28. Ng3 {[%emt 0:00:40]} Rf8 {[%emt 0:04:24]} 29. Re2 {[%emt 0:05:34]} Qh4 {[%emt 0:18:22]} 30. Bxc5 {[%emt 0:07:05]} Bxc5 {[%emt 0:01:47]} 31. Qxc5 {[%emt 0:00:06]} Rxf4 {[%emt 0:00:14]} 32. Rg2 {[%emt 0:08:18]} Bb7 {[%emt 0:01:04]} 33. Qd6 {[%emt 0:03:05]} Rxf1+ {[%emt 0:01:56]} 34. Nxf1 {[%emt 0:00:06]} Rb1 {[%emt 0:01:01]} 35. Rf2 {[%emt 0:04:09]} Qg3+ {[%emt 0:03:34]} 36. Rg2 {[%emt 0:00:05]} Qe3+ {[%emt 0:00:58]} 37. Rf2 {[%emt 0:02:21]} Qg3+ {[%emt 0:00:04]} 38. Rg2 {[%emt 0:00:03]} Qf3 {[%emt 0:00:10]} 39. Qd8+ {[%emt 0:01:49]} Kg7 {[%emt 0:00:59]} 40. Qe7+ {[%emt 0:00:31]} Qf7 {[%emt 0:00:47]} 41. Qxf7+ {[%emt 0:00:11]} Kxf7 {[%emt 0:00:02]} 42. Kf2 {[%emt 0:00:39]} Rb2 {[%emt 0:01:57]} 43. Ke1 {[%emt 0:00:41]} Rxa2 {[%emt 0:00:13]} 44. Ne3 {[%emt 0:00:30]} Ke6 {[%emt 0:00:40]} 45. Rf2 {[%emt 0:00:28]} Kxe5 {[%emt 0:00:38]} 46. Rf7 {[%emt 0:00:14]} Bc8 {[%emt 0:00:39]} 47. Rxh7 {[%emt 0:00:21]} a4 {[%emt 0:00:21]} 48. Re7+ {[%emt 0:00:29]} Kd6 {[%emt 0:00:41]} 49. Rg7 {[%emt 0:00:02]} Bf5 {[%emt 0:01:13]} 50. Kd2 {[%emt 0:00:30]} Ra1 {[%emt 0:00:32]} 51. Nd1 {[%emt 0:01:25]} a3 {[%emt 0:00:43]} 52. h4 {[%emt 0:00:20]} a2 {[%emt 0:01:25]} 53. Ra7 {[%emt 0:00:06]} Ke5 {[%emt 0:01:24]} 54. Ne3 {[%emt 0:00:46]} Be4 {[%emt 0:00:04]} 55. Ke2 {[%emt 0:00:40]} Kf4 {[%emt 0:00:57]} 56. Kf2 {[%emt 0:00:33]} Rh1 {[%emt 0:01:34]} 57. Rxa2 {[%emt 0:00:06]} Rh2+ {[%emt 0:00:26]} 58. Kg1 {[%emt 0:00:02]} Rxh4 {[%emt 0:00:16]} 59. Ng2+ {[%emt 0:01:01]} Bxg2 {[%emt 0:00:06]} 60. Kxg2 {[%emt 0:00:01]} Ke3 {[%emt 0:00:24]} 61. Kg3 {[%emt 0:00:20]} Re4 {[%emt 0:01:14]} 62. Ra5 {[%emt 0:01:12]} Re5 {[%emt 0:00:14]} 63. Ra6 {[%emt 0:00:41]} g5 {[%emt 0:00:03]} 0-1

[Event "Magistral Ajedrez 2019"]
[Site "Zaragoza"]
[Date "2019.07.17"]
[Round "4.2"]
[White "Shome Shiv"]
[Black "Randazzo, Adrian"]
[Result "1-0"]
[ECO "C11"]
[WhiteElo "2298"]
[BlackElo "2227"]
[Annotator "NA"]
[PlyCount "149"]
[EventDate "2019.07.15"]
[EventType "swiss"]
[EventCountry "ESP"]
[SourceTitle "playchess.com"]
[Source "ChessBase"]
[SourceQuality "1"]
[TimeControl "5400+30"]

1. e4 {[%emt 0:00:00]} e6 {[%emt 0:00:00]} 2. d4 {[%emt 0:00:00]} d5 {[%emt 0:00:00]} 3. Nc3 {[%emt 0:00:07]} Nf6 {[%emt 0:00:02]} 4. Bg5 {[%emt 0:00:32]} dxe4 {[%emt 0:00:27]} 5. Nxe4 {[%emt 0:00:37]} Be7 {[%emt 0:00:07]} 6. Bxf6 {[%emt 0:00:23]} gxf6 {[%emt 0:00:13]} 7. Nf3 {[%emt 0:01:47]} a6 {[%emt 0:00:50]} 8. c4 {[%emt 0:04:45]} f5 {[%emt 0:00:38]} 9. Nc3 {[%emt 0:00:09]} Bf6 {[%emt 0:00:49]} 10. Qd2 {[%emt 0:01:09]} c5 {[%emt 0:02:07]} 11. dxc5 {[%emt 0:06:13]} Qa5 {[%emt 0:02:31]} 12. Be2 {[%emt 0:04:29]} Qxc5 {[%emt 0:05:04]} 13. O-O {[%emt 0:00:26]} O-O {[%emt 0:01:21]} 14. Rfd1 {[%emt 0:07:36]} Bd7 {[%emt 0:03:48]} 15. b4 {[%emt 0:05:44]} Qc7 {[%emt 0:12:08]} 16. Rac1 {[%emt 0:06:43]} Kh8 {[%emt 0:04:24]} 17. Qh6 {[%emt 0:06:57]} Bg7 {[%emt 0:00:26]} 18. Qh4 {[%emt 0:01:41]} Nc6 {[%emt 0:09:09]} 19. Nd5 {[%emt 0:07:10]} Qd8 {[%emt 0:13:57]} 20. Qxd8 {[%emt 0:12:17]} Raxd8 {[%emt 0:00:14]} 21. Nb6 {[%emt 0:00:07]} Be8 {[%emt 0:06:45]} 22. Rxd8 {[%emt 0:01:36]} Nxd8 {[%emt 0:00:04]} 23. b5 {[%emt 0:00:07]} Bf6 {[%emt 0:01:13]} 24. a4 {[%emt 0:03:16]} a5 {[%emt 0:08:50]} 25. c5 {[%emt 0:04:47]} e5 {[%emt 0:06:12]} 26. Bc4 {[%emt 0:08:40]} e4 {[%emt 0:01:22]} 27. Nd2 {[%emt 0:00:06]} Bg5 {[%emt 0:02:42]} 28. Rc2 {[%emt 0:00:18]} Ne6 {[%emt 0:00:23]} 29. Bxe6 {[%emt 0:00:51]} fxe6 {[%emt 0:00:05]} 30. Ndc4 {[%emt 0:00:05]} f4 {[%emt 0:02:11]} 31. Nd6 {[%emt 0:04:17]} Bg6 {[%emt 0:00:20]} 32. Re2 {[%emt 0:01:10]} e3 {[%emt 0:03:47]} 33. Nd7 {[%emt 0:01:56]} Rg8 {[%emt 0:06:30]} 34. Ne5 {[%emt 0:05:13]} Bh5 {[%emt 0:02:15]} 35. f3 {[%emt 0:00:27]} Bf6 {[%emt 0:00:45]} 36. Ng4 {[%emt 0:00:57]} Bxg4 {[%emt 0:00:57]} 37. fxg4 {[%emt 0:00:07]} Rxg4 {[%emt 0:00:22]} 38. c6 {[%emt 0:01:12]} bxc6 {[%emt 0:00:35]} 39. bxc6 {[%emt 0:00:05]} f3 {[%emt 0:02:20]} 40. c7 {[%emt 0:01:18]} Rg8 {[%emt 0:00:05]} 41. Rxe3 {[%emt 0:01:09]} Bd4 {[%emt 0:01:52]} 42. Nf7+ {[%emt 0:00:04]} Kg7 {[%emt 0:00:06]} 43. Nd8 {[%emt 0:00:04]} Bxe3+ {[%emt 0:00:10]} 44. Kf1 {[%emt 0:00:05]} fxg2+ {[%emt 0:01:51]} 45. Kxg2 {[%emt 0:00:05]} Bg5 {[%emt 0:00:23]} 46. c8=Q {[%emt 0:00:14]} Bxd8 {[%emt 0:00:07]} 47. Qxe6 {[%emt 0:00:08]} Rf8 {[%emt 0:01:17]} 48. Qe5+ {[%emt 0:00:33]} Kf7 {[%emt 0:00:32]} 49. Kh3 {[%emt 0:01:23]} Kg8 {[%emt 0:00:09]} 50. Kg4 {[%emt 0:00:30]} Rf7 {[%emt 0:01:16]} 51. Qe8+ {[%emt 0:00:31]} Rf8 {[%emt 0:00:06]} 52. Qd7 {[%emt 0:00:05]} Kh8 {[%emt 0:00:32]} 53. Kh5 {[%emt 0:00:39]} Kg8 {[%emt 0:00:02]} 54. Qd5+ {[%emt 0:00:58]} Kg7 {[%emt 0:00:09]} 55. Qd4+ {[%emt 0:00:39]} Kg8 {[%emt 0:00:05]} 56. Qe5 {[%emt 0:00:14]} Rf7 {[%emt 0:00:46]} 57. Qd5 {[%emt 0:00:45]} Bc7 {[%emt 0:00:32]} 58. h4 {[%emt 0:01:17]} Kg7 {[%emt 0:00:43]} 59. Kg5 {[%emt 0:00:50]} Bf4+ {[%emt 0:01:02]} 60. Kg4 {[%emt 0:00:57]} Bc7 {[%emt 0:00:01]} 61. Qe6 {[%emt 0:00:48]} Rf6 {[%emt 0:01:07]} 62. Qd7+ {[%emt 0:00:29]} Rf7 {[%emt 0:00:01]} 63. Qc6 {[%emt 0:00:05]} Rf4+ {[%emt 0:00:27]} 64. Kg5 {[%emt 0:00:23]} Rf7 {[%emt 0:00:12]} 65. h5 {[%emt 0:00:41]} Bd8+ {[%emt 0:01:28]} 66. Kg4 {[%emt 0:00:11]} Bc7 {[%emt 0:00:03]} 67. Qe6 {[%emt 0:00:54]} Kg8 {[%emt 0:01:02]} 68. h6 {[%emt 0:00:50]} Bd8 {[%emt 0:00:29]} 69. Qe8+ {[%emt 0:00:18]} Rf8 {[%emt 0:00:02]} 70. Qd7 {[%emt 0:00:02]} Bf6 {[%emt 0:00:26]} 71. Qd5+ {[%emt 0:00:08]} Rf7 {[%emt 0:00:16]} 72. Qxa5 {[%emt 0:00:13]} Kf8 {[%emt 0:00:02]} 73. Qa8+ {[%emt 0:00:25]} Ke7 {[%emt 0:00:02]} 74. a5 {[%emt 0:00:09]} Be5 {[%emt 0:01:13]} 75. a6 {[%emt 0:00:34]} 1-0

[Event "Magistral Ajedrez 2019"]
[Site "Zaragoza"]
[Date "2019.07.17"]
[Round "4.3"]
[White "Dardha, Daniel"]
[Black "Villuendas Valero, Adrian"]
[Result "1-0"]
[ECO "A20"]
[WhiteElo "2420"]
[BlackElo "2250"]
[Annotator "NA"]
[PlyCount "51"]
[EventDate "2019.07.15"]
[EventType "swiss"]
[EventCountry "ESP"]
[SourceTitle "playchess.com"]
[Source "ChessBase"]
[SourceQuality "1"]
[TimeControl "5400+30"]

1. c4 {[%emt 0:02:02]} e5 {[%emt 0:00:00]} 2. g3 {[%emt 0:01:19]} Nf6 {[%emt 0:00:09]} 3. Bg2 {[%emt 0:01:36]} Nc6 {[%emt 0:00:31]} 4. Nc3 {[%emt 0:01:25]} Bb4 {[%emt 0:04:12]} 5. e4 {[%emt 0:00:40]} Bxc3 {[%emt 0:01:29]} 6. bxc3 {[%emt 0:02:10]} d6 {[%emt 0:00:24]} 7. d3 {[%emt 0:00:15]} O-O {[%emt 0:00:25]} 8. Ne2 {[%emt 0:02:26]} Be6 {[%emt 0:08:43]} 9. O-O {[%emt 0:00:51]} Nd7 {[%emt 0:03:29]} 10. Rb1 {[%emt 0:20:32]} b6 {[%emt 0:08:43]} 11. f4 {[%emt 0:00:50]} f6 {[%emt 0:00:32]} 12. f5 {[%emt 0:00:53]} Bf7 {[%emt 0:00:08]} 13. g4 {[%emt 0:00:41]} Ne7 {[%emt 0:09:12]} 14. g5 {[%emt 0:08:54]} c6 {[%emt 0:05:21]} 15. Ng3 {[%emt 0:09:09]} d5 {[%emt 0:06:31]} 16. cxd5 {[%emt 0:04:12]} cxd5 {[%emt 0:01:01]} 17. gxf6 {[%emt 0:06:42]} Nxf6 {[%emt 0:02:02]} 18. Bg5 {[%emt 0:04:48]} Qc7 {[%emt 0:15:01]} 19. Qe1 {[%emt 0:09:29]} Rac8 {[%emt 0:06:23]} 20. d4 {[%emt 0:03:05]} dxe4 {[%emt 0:18:16]} 21. Bxf6 {[%emt 0:04:44]} gxf6 {[%emt 0:00:07]} 22. Nxe4 {[%emt 0:00:10]} Bxa2 {[%emt 0:00:52]} 23. Ra1 {[%emt 0:06:41]} Bd5 {[%emt 0:02:32]} 24. dxe5 {[%emt 0:00:33]} Qxe5 {[%emt 0:04:58]} 25. Rxa7 {[%emt 0:00:20]} Rc7 {[%emt 0:00:49]} 26. Nxf6+ {[%emt 0:01:03]} 1-0

[Event "Magistral Ajedrez 2019"]
[Site "Zaragoza"]
[Date "2019.07.17"]
[Round "4.4"]
[White "Kovacevic, Slobodan"]
[Black "Gomez Anadon, Daniel"]
[Result "1/2-1/2"]
[ECO "D00"]
[WhiteElo "2257"]
[BlackElo "2305"]
[Annotator "NA"]
[PlyCount "184"]
[EventDate "2019.07.15"]
[EventType "swiss"]
[EventCountry "ESP"]
[SourceTitle "playchess.com"]
[Source "ChessBase"]
[SourceQuality "1"]
[TimeControl "5400+30"]

1. d4 {[%emt 0:00:00]} d5 {[%emt 0:00:00]} 2. Bf4 {[%emt 0:07:20]} Nf6 {[%emt 0:00:02]} 3. e3 {[%emt 0:00:17]} e6 {[%emt 0:00:20]} 4. Nd2 {[%emt 0:00:16]} c5 {[%emt 0:00:32]} 5. c3 {[%emt 0:00:05]} Bd6 {[%emt 0:00:20]} 6. Bg3 {[%emt 0:00:05]} O-O {[%emt 0:00:24]} 7. Ngf3 {[%emt 0:02:47]} b6 {[%emt 0:00:54]} 8. a4 {[%emt 0:00:55]} Nc6 {[%emt 0:04:28]} 9. Ne5 {[%emt 0:02:04]} Bb7 {[%emt 0:00:57]} 10. Bd3 {[%emt 0:00:44]} Qc7 {[%emt 0:09:55]} 11. f4 {[%emt 0:03:55]} Ne7 {[%emt 0:01:17]} 12. Qf3 {[%emt 0:12:56]} Nf5 {[%emt 0:02:20]} 13. O-O {[%emt 0:06:24]} Rab8 {[%emt 0:17:32]} 14. Bf2 {[%emt 0:03:14]} Be7 {[%emt 0:00:51]} 15. g4 {[%emt 0:03:19]} Nd6 {[%emt 0:00:39]} 16. Qh3 {[%emt 0:11:03]} Nfe4 {[%emt 0:04:06]} 17. Bg3 {[%emt 0:03:58]} f6 {[%emt 0:04:04]} 18. Nef3 {[%emt 0:01:26]} Qd7 {[%emt 0:10:00]} 19. Rfd1 {[%emt 0:03:53]} c4 {[%emt 0:04:35]} 20. Bc2 {[%emt 0:03:02]} Bc6 {[%emt 0:00:55]} 21. Nh4 {[%emt 0:05:26]} b5 {[%emt 0:04:59]} 22. a5 {[%emt 0:14:38]} b4 {[%emt 0:01:31]} 23. Bxe4 {[%emt 0:06:00]} dxe4 {[%emt 0:04:52]} 24. f5 {[%emt 0:00:14]} Bd5 {[%emt 0:02:22]} 25. fxe6 {[%emt 0:01:22]} Bxe6 {[%emt 0:01:36]} 26. Nf5 {[%emt 0:00:49]} Rb5 {[%emt 0:04:06]} 27. Nxe7+ {[%emt 0:02:39]} Qxe7 {[%emt 0:00:06]} 28. Bxd6 {[%emt 0:00:09]} Qxd6 {[%emt 0:00:16]} 29. Nxe4 {[%emt 0:00:26]} Qc6 {[%emt 0:05:43]} 30. Nc5 {[%emt 0:00:27]} bxc3 {[%emt 0:00:18]} 31. bxc3 {[%emt 0:00:06]} Bd5 {[%emt 0:00:14]} 32. Re1 {[%emt 0:02:08]} Be4 {[%emt 0:00:40]} 33. Ra2 {[%emt 0:01:46]} Rfb8 {[%emt 0:01:11]} 34. Qf1 {[%emt 0:00:15]} Rb2 {[%emt 0:01:45]} 35. Rxb2 {[%emt 0:00:47]} Rxb2 {[%emt 0:00:24]} 36. Qxc4+ {[%emt 0:02:02]} Bd5 {[%emt 0:00:40]} 37. Qd3 {[%emt 0:00:17]} Rg2+ {[%emt 0:06:58]} 38. Kf1 {[%emt 0:00:01]} Qd6 {[%emt 0:00:53]} 39. Qf5 {[%emt 0:01:05]} Rxh2 {[%emt 0:04:50]} 40. Qc8+ {[%emt 0:00:54]} Kf7 {[%emt 0:00:05]} 41. Qd7+ {[%emt 0:00:10]} Qxd7 {[%emt 0:00:04]} 42. Nxd7 {[%emt 0:00:18]} Rc2 {[%emt 0:00:27]} 43. Nc5 {[%emt 0:00:11]} Rxc3 {[%emt 0:00:23]} 44. Kf2 {[%emt 0:00:19]} Ra3 {[%emt 0:02:41]} 45. a6 {[%emt 0:00:01]} Kg6 {[%emt 0:00:38]} 46. Rc1 {[%emt 0:00:46]} Ra2+ {[%emt 0:00:31]} 47. Kg3 {[%emt 0:00:04]} Rg2+ {[%emt 0:00:21]} 48. Kh3 {[%emt 0:00:03]} Re2 {[%emt 0:00:22]} 49. Rc3 {[%emt 0:00:03]} f5 {[%emt 0:00:44]} 50. gxf5+ {[%emt 0:00:21]} Kxf5 {[%emt 0:00:02]} 51. Nb7 {[%emt 0:00:39]} Ra2 {[%emt 0:00:39]} 52. Rc5 {[%emt 0:00:16]} Ke6 {[%emt 0:00:34]} 53. Rc7 {[%emt 0:00:10]} Ra3 {[%emt 0:00:41]} 54. Rxg7 {[%emt 0:00:31]} Rxe3+ {[%emt 0:00:09]} 55. Kh2 {[%emt 0:00:08]} Re2+ {[%emt 0:01:00]} 56. Kg1 {[%emt 0:00:09]} Ra2 {[%emt 0:00:32]} 57. Nc5+ {[%emt 0:00:12]} Kd6 {[%emt 0:00:22]} 58. Rxh7 {[%emt 0:00:27]} Rg2+ {[%emt 0:00:33]} 59. Kf1 {[%emt 0:00:01]} Rd2 {[%emt 0:00:12]} 60. Rh4 {[%emt 0:02:03]} Bc4+ {[%emt 0:00:20]} 61. Ke1 {[%emt 0:00:12]} Ra2 {[%emt 0:00:23]} 62. Rh7 {[%emt 0:00:12]} Kd5 {[%emt 0:00:34]} 63. Rd7+ {[%emt 0:00:07]} Kc6 {[%emt 0:00:27]} 64. Rxa7 {[%emt 0:00:03]} Bb5 {[%emt 0:00:36]} 65. Ra8 {[%emt 0:00:25]} Kd5 {[%emt 0:01:00]} 66. a7 {[%emt 0:01:14]} Bc6 {[%emt 0:00:09]} 67. Rd8+ {[%emt 0:00:45]} Kc4 {[%emt 0:00:22]} 68. Rd6 {[%emt 0:00:50]} Bd5 {[%emt 0:00:57]} 69. Na6 {[%emt 0:00:25]} Ra1+ {[%emt 0:00:33]} 70. Kd2 {[%emt 0:00:10]} Ba8 {[%emt 0:00:32]} 71. Ke3 {[%emt 0:01:08]} Re1+ {[%emt 0:00:04]} 72. Kf4 {[%emt 0:00:47]} Re4+ {[%emt 0:00:50]} 73. Kf5 {[%emt 0:00:02]} Rxd4 {[%emt 0:00:29]} 74. Rxd4+ {[%emt 0:00:17]} Kxd4 {[%emt 0:00:01]} 75. Ke6 {[%emt 0:00:45]} Kc4 {[%emt 0:00:07]} 76. Nc7 {[%emt 0:00:24]} Bg2 {[%emt 0:01:09]} 77. Kd6 {[%emt 0:00:08]} Bh1 {[%emt 0:00:39]} 78. Ne6 {[%emt 0:01:02]} Kb5 {[%emt 0:00:27]} 79. Kc7 {[%emt 0:00:07]} Ka6 {[%emt 0:00:18]} 80. Kb8 {[%emt 0:00:29]} Kb6 {[%emt 0:00:15]} 81. Nc7 {[%emt 0:00:53]} Bg2 {[%emt 0:00:15]} 82. Ne8 {[%emt 0:00:20]} Bf3 {[%emt 0:00:29]} 83. Nf6 {[%emt 0:00:10]} Bg2 {[%emt 0:00:32]} 84. Ng8 {[%emt 0:00:24]} Bf3 {[%emt 0:00:16]} 85. Ne7 {[%emt 0:00:13]} Bg2 {[%emt 0:00:28]} 86. Nc8+ {[%emt 0:00:15]} Ka6 {[%emt 0:00:12]} 87. Kc7 {[%emt 0:01:02]} Bf3 {[%emt 0:00:40]} 88. Kb8 {[%emt 0:00:17]} Bg2 {[%emt 0:00:13]} 89. Nd6 {[%emt 0:00:08]} Bf3 {[%emt 0:00:26]} 90. Nc4 {[%emt 0:00:15]} Bg2 {[%emt 0:00:24]} 91. Ne5 {[%emt 0:00:08]} Bh1 {[%emt 0:00:37]} 92. Nd3 {[%emt 0:00:07]} Kb6 {[%emt 0:00:23]} 1/2-1/2

[Event "Magistral Ajedrez 2019"]
[Site "Zaragoza"]
[Date "2019.07.17"]
[Round "4.5"]
[White "Sos Andreu, Eric"]
[Black "Llorente Zaro, Alfonso"]
[Result "1/2-1/2"]
[ECO "B09"]
[WhiteElo "2343"]
[BlackElo "2445"]
[Annotator "NA"]
[PlyCount "31"]
[EventDate "2019.07.15"]
[EventType "swiss"]
[EventCountry "ESP"]
[SourceTitle "playchess.com"]
[Source "ChessBase"]
[SourceQuality "1"]
[TimeControl "5400+30"]

1. e4 {[%emt 0:00:00]} g6 {[%emt 0:00:00]} 2. d4 {[%emt 0:00:15]} d6 {[%emt 0:00:26]} 3. Nc3 {[%emt 0:00:45]} Nf6 {[%emt 0:00:51]} 4. f4 {[%emt 0:02:03]} Bg7 {[%emt 0:02:27]} 5. Nf3 {[%emt 0:02:53]} c5 {[%emt 0:01:57]} 6. Bb5+ {[%emt 0:02:06]} Bd7 {[%emt 0:01:34]} 7. e5 {[%emt 0:02:23]} Ng4 {[%emt 0:01:42]} 8. e6 {[%emt 0:01:30]} fxe6 {[%emt 0:00:47]} 9. Ng5 {[%emt 0:01:18]} Bxb5 {[%emt 0:02:00]} 10. Nxe6 {[%emt 0:01:23]} Bxd4 {[%emt 0:00:35]} 11. Nxd8 {[%emt 0:00:49]} Bf2+ {[%emt 0:00:08]} 12. Kd2 {[%emt 0:00:05]} Be3+ {[%emt 0:00:12]} 13. Ke1 {[%emt 0:00:05]} Bf2+ {[%emt 0:00:13]} 14. Kd2 {[%emt 0:00:09]} Be3+ {[%emt 0:00:08]} 15. Ke1 {[%emt 0:00:09]} Bf2+ 16. Kd2 1/2-1/2